fUSD/lending_fUSD_20250415
["ID","MTS","AMOUNT","RATE_DAILY","PERIOD"]
[358099309,1744715443582,-811.29,0.00017999,2]
[358099310,1744715443592,-811.29,0.00017999,2]
[358099311,1744715443602,-811.29,0.00017999,2]
[358099312,1744715443611,-811.29,0.00017999,2]
[358099313,1744715443621,-811.29,0.00017999,2]
[358099314,1744715443631,-811.29,0.00017999,2]
[358099315,1744715443640,-811.29,0.00017999,2]
[358099316,1744715443650,-811.29,0.00017999,2]
[358099317,1744715443660,-811.29,0.00017999,2]
[358099318,1744715443669,-811.29,0.00017999,2]
[358099319,1744715443679,-811.29,0.00017999,2]
[358099320,1744715443693,-811.29,0.00017999,2]
[358099321,1744715443707,-811.29,0.00017999,2]
[358099322,1744715443717,-811.29,0.00017999,2]
[358099323,1744715443726,-811.36179042,0.00017999,2]
[358099324,1744715443736,-500.0,0.00017999,2]
[358099325,1744715443745,-500.0,0.00017999,2]
[358099326,1744715443755,-500.0,0.00017999,2]
[358099327,1744715443765,-500.0,0.00017999,2]
[358099328,1744715443775,-500.0,0.00017999,2]
[358099329,1744715443785,-500.0,0.00017999,2]
[358099330,1744715443795,-500.0,0.00017999,2]
[358099331,1744715443805,-500.0,0.00017999,2]
[358099332,1744715443815,-500.0,0.00017999,2]
[358099333,1744715443824,-500.0,0.00017999,2]
[358099334,1744715443833,-581.3,0.00017999,2]
[358099335,1744715443843,-151.0,0.00017999,2]
[358099336,1744715443853,-151.0,0.00017999,2]
[358099337,1744715443864,-151.0,0.00017999,2]
[358099338,1744715443875,-151.0,0.00017999,2]
[358099339,1744715443884,-151.0,0.00017999,2]
[358099340,1744715443894,-6314.18,0.00017999,2]
[358099341,1744715443905,-151.0,0.00017999,2]
[358099342,1744715443919,-6314.18,0.00017999,2]
[358099343,1744715443930,-6314.18,0.00017999,2]
[358099344,1744715443940,-238.351976,0.00017999,2]
[358099345,1744715443951,-6314.18,0.00017999,2]
[358099346,1744715443960,-6314.18,0.00017999,2]
[358099347,1744715443970,-6314.18,0.00017999,2]
[358099348,1744715443980,-6314.18,0.00017999,2]
[358099349,1744715443991,-6314.18,0.00017999,2]
[358099350,1744715444001,-6314.18,0.00017999,2]
[358099351,1744715444011,-6314.18,0.00017999,2]
[358099352,1744715444020,-6314.18,0.00017999,2]
[358099353,1744715444031,-6314.18,0.00017999,2]
[358099354,1744715444048,-6314.18,0.00017999,2]
[358099355,1744715444066,-6314.18,0.00017999,2]
[358099356,1744715444076,-5899.06386735,0.00017999,2]
[358099357,1744715444254,-415.11613265,0.00017999,2]
[358099358,1744715444263,-1488.34485952,0.00017999,2]
[358099359,1744715444276,-1616.04636471,0.00017999,2]
[358099360,1744715444292,-3209.78877577,0.00017999,2]
[358099361,1744715444302,-6314.18,0.00017999,2]
[358099362,1744715444312,-567.8058803,0.00017999,2]
[358099363,1744715444323,-4939.19213028,0.00017999,2]
[358099364,1744715444363,-807.18198942,0.00017999,2]
[358099365,1744715444372,-33.48630037,0.00017999,2]
[358099366,1744715444384,-4217.54015466,0.00017999,2]
[358099367,1744715444396,-1033.23521118,0.00017999,2]
[358099368,1744715444411,-1029.91833379,0.00017999,2]
[358099369,1744715444421,-710.17276951,0.00017999,2]
[358099370,1744715444432,-1199.30233872,0.00017999,2]
[358099372,1744715444453,-4404.70489177,0.00017999,2]
[358099373,1744715444462,-1347.9130728,0.00017999,2]
[358099374,1744715444473,-431.580006,0.00017999,2]
[358099376,1744715446138,-4534.6869212,0.00017999,2]
[358099377,1744715446148,-6314.36801865,0.00017999,2]
[358099378,1744715446159,-165.93755,0.00017999,2]
[358099379,1744715446168,-1276.76,0.00017999,2]
[358099380,1744715446178,-1276.76,0.00017999,2]
[358099381,1744715446188,-1276.76,0.00017999,2]
[358099382,1744715446197,-1276.76,0.00017999,2]
[358099383,1744715446207,-1276.76,0.00017999,2]
[358099384,1744715446216,-1276.76,0.00017999,2]
[358099385,1744715446226,-1276.76,0.00017999,2]
[358099386,1744715446236,-1276.76,0.00017999,2]
[358099387,1744715446246,-1276.76,0.00017999,2]
[358099388,1744715446255,-1276.76,0.00017999,2]
[358099389,1744715446265,-1276.76,0.00017999,2]
[358099390,1744715446275,-1276.76,0.00017999,2]
[358099391,1744715446286,-151.0,0.00017999,2]
[358099392,1744715446295,-1276.76,0.00017999,2]
[358099394,1744715446304,-1276.76,0.00017999,2]
[358099395,1744715446314,-151.0,0.00017999,2]
[358099396,1744715446323,-1276.76,0.00017999,2]
[358099397,1744715446333,-151.0,0.00017999,2]
[358099398,1744715446342,-1276.76,0.00017999,2]
[358099399,1744715446351,-1276.76,0.00017999,2]
[358099400,1744715446361,-1276.76,0.00017999,2]
[358099401,1744715446370,-1276.76,0.00017999,2]
[358099402,1744715446379,-1276.76,0.00017999,2]
[358099403,1744715446388,-1276.76,0.00017999,2]
[358099404,1744715446398,-1276.76,0.00017999,2]
[358099406,1744715446407,-1276.95,0.00017999,2]
[358099407,1744715446417,-456.389194,0.00017999,2]
[358099408,1744715446426,-456.389194,0.00017999,2]
[358099409,1744715446435,-456.389194,0.00017999,2]
[358099410,1744715446445,-456.389194,0.00017999,2]
[358099411,1744715446454,-104.58809748,0.00017999,2]
[358099412,1744715446474,-351.80109652,0.00017999,2]
[358099413,1744715446484,-456.389194,0.00017999,2]
[358099414,1744715446494,-124.95761699,0.00017999,2]
[358099415,1744715446506,-264.38400004,0.00017999,2]
[358099416,1744715446517,-67.04757697,0.00017999,2]
[358099417,1744715446527,-456.389194,0.00017999,2]
[358099418,1744715446536,-5.5727783,0.00017999,2]
[358099419,1744715446551,-450.8164157,0.00017999,2]
[358099420,1744715446561,-456.389194,0.00017999,2]
[358099421,1744715446570,-817.165017,0.00017999,2]
[358099422,1744715446579,-817.165017,0.00017999,2]
[358099423,1744715446589,-817.165017,0.00017999,2]
[358099424,1744715446598,-817.165017,0.00017999,2]
[358099425,1744715446608,-618.24349162,0.00017999,2]
[358099426,1744715446619,-198.92152538,0.00017999,2]
[358099427,1744715446629,-817.165017,0.00017999,2]
[358099428,1744715446638,-817.165017,0.00017999,2]
[358099429,1744715446648,-817.165017,0.00017999,2]
[358099430,1744715446661,-61.92023931,0.00017999,2]
[358099431,1744715446674,-438.07976069,0.00017999,2]
[358099432,1744715446684,-817.165017,0.00017999,2]
[358099433,1744715446693,-817.165017,0.00017999,2]
[358099434,1744715446704,-151.0,0.00017999,2]
[358099435,1744715446715,-100.88577199,0.00017999,2]
[358099436,1744715446727,-52.68606101,0.00017999,2]
[358099437,1744715446737,-500.0,0.00017999,2]
[358099438,1744715446746,-500.0,0.00017999,2]
[358099439,1744715446758,-455.28983739,0.00017999,2]
[358099441,1744715523774,892.47,0.00015069,2]
[358099442,1744715524001,892.47,0.00017333,2]
[358099447,1744715667750,1110.02,0.000269,31]
[358099448,1744715667815,1110.02,0.000269,31]
[358099449,1744715667872,1110.02,0.000269,31]
[358099450,1744715667927,1110.02,0.000269,31]
[358099451,1744715667991,1110.02,0.000269,31]
[358099452,1744715668043,1110.02,0.000269,31]
[358099453,1744715668145,1110.02,0.000269,31]
[358099454,1744715668201,1110.02,0.000269,31]
[358099455,1744715668261,1110.02,0.000269,31]
[358099456,1744715668304,1110.02,0.000269,31]
[358099457,1744715668352,1110.02,0.000269,31]
[358099458,1744715668419,1110.02,0.000269,31]
[358099459,1744715668529,1110.02,0.000269,31]
[358099460,1744715668589,1110.02,0.000269,31]
[358099461,1744715668644,1110.02,0.000269,31]
[358099462,1744715668709,1110.02,0.000269,31]
[358099464,1744715761814,500.0,0.000171,6]
[358099465,1744715763923,1100.0,0.000172,6]
[358099466,1744715766029,1600.0,0.000173,6]
[358099467,1744715768129,2200.0,0.000174,6]
[358099468,1744715770368,2700.0,0.000175,6]
[358099469,1744715772504,500.0,0.000176,6]
[358099470,1744715774622,500.0,0.000177,6]
[358099471,1744715776849,500.0,0.000178,6]
[358099472,1744715778912,500.0,0.000179,6]
[358099473,1744715781043,1000.0,0.000199,7]
[358099478,1744716004975,489.71,0.00017,2]
[358099480,1744716131245,1000.0,0.00016973,2]
[358099481,1744716280292,932.5,0.000269,31]
[358099482,1744716280343,932.5,0.000269,31]
[358099483,1744716280404,932.5,0.000269,31]
[358099484,1744716280457,932.5,0.000269,31]
[358099485,1744716280500,932.5,0.000269,31]
[358099486,1744716280542,932.5,0.000269,31]
[358099487,1744716280583,932.5,0.000269,31]
[358099488,1744716280642,932.5,0.000269,31]
[358099489,1744716280711,932.5,0.000269,31]
[358099490,1744716280765,932.5,0.000269,31]
[358099491,1744716280825,932.5,0.000269,31]
[358099492,1744716280887,932.5,0.000269,31]
[358099493,1744716280945,932.5,0.000269,31]
[358099494,1744716281008,932.5,0.000269,31]
[358099495,1744716281074,932.5,0.000269,31]
[358099496,1744716281130,932.5,0.000269,31]
[358099501,1744716502756,250.0,0.0001696,2]
[358099509,1744716600710,803.22,0.00015042,2]
[358099510,1744716601050,803.22,0.00017306,2]
[358099529,1744716632129,-532.55684227,0.00017898,2]
[358099530,1744716632142,-397.27896506,0.00017898,2]
[358099531,1744716632151,-813.29098196,0.00017898,2]
[358099532,1744716632182,-116.54482535,0.00017898,2]
[358099533,1744716632192,-528.54129684,0.00017898,2]
[358099534,1744716632205,-401.29451047,0.00017898,2]
[358099535,1744716632215,-929.83580731,0.00017899,2]
[358099536,1744716632225,-929.83580731,0.00017899,2]
[358099537,1744716632235,-18.84387491,0.00017899,2]
[358099538,1744716632247,-281.15612509,0.00017899,2]
[358099539,1744716632256,-330.7932158,0.00017899,2]
[358099540,1744716632269,-599.04259151,0.00017899,2]
[358099541,1744716632279,-929.83580731,0.00017899,2]
[358099542,1744716632291,-250.0,0.000179,2]
[358099543,1744716632302,-291.67814228,0.000179,2]
[358099544,1744716632313,-492.56648881,0.000179,2]
[358099545,1744716632326,-145.59117622,0.000179,2]
[358099546,1744716632336,-309.25114489,0.000179,2]
[358099547,1744716632359,-620.58466242,0.000179,2]
[358099548,1744716632368,-550.24950446,0.000179,2]
[358099549,1744716632377,-1231.81703358,0.000179,2]
[358099550,1744716632387,-929.83580731,0.000179,2]
[358099551,1744716632396,-229.12459225,0.000179,2]
[358099552,1744716632406,-153.55,0.00017903,2]
[358099554,1744716632416,-153.55,0.00017911,2]
[358099556,1744716632426,-153.55,0.00017919,2]
[358099558,1744716632435,-153.55,0.00017927,2]
[358099560,1744716632445,-2047.0,0.0001793,2]
[358099561,1744716632455,-977.18839998,0.0001793,2]
[358099564,1744716638321,-350.84760002,0.0001793,2]
[358099565,1744716638333,-152.0,0.0001793,2]
[358099566,1744716638343,-153.55,0.00017935,2]
[358099567,1744716638353,-153.55,0.00017943,2]
[358099568,1744716638364,-153.55,0.00017951,2]
[358099569,1744716638374,-153.55,0.0001796,2]
[358099570,1744716638384,-153.55,0.00017968,2]
[358099571,1744716638393,-500.0,0.00017973,2]
[358099572,1744716638403,-153.55,0.00017976,2]
[358099573,1744716638413,-153.55,0.00017984,2]
[358099574,1744716638422,-668.65185757,0.00017988,2]
[358099575,1744716638431,-207.4,0.00017988,2]
[358099576,1744716638441,-550.0,0.00017992,2]
[358099577,1744716638450,-153.55,0.00017992,2]
[358099578,1744716638460,-659.001,0.00017997,2]
[358099579,1744716638470,-500.0,0.00017997,2]
[358099580,1744716638479,-500.0,0.00017997,2]
[358099581,1744716638489,-500.0,0.00017997,2]
[358099582,1744716638499,-500.0,0.00017997,2]
[358099583,1744716638508,-500.0,0.00017997,2]
[358099584,1744716638517,-500.0,0.00017997,2]
[358099585,1744716638526,-500.0,0.00017997,2]
[358099586,1744716638536,-500.0,0.00017997,2]
[358099587,1744716638546,-2139.0,0.00017997,2]
[358099588,1744716638555,-500.0,0.00017997,2]
[358099589,1744716638565,-500.0,0.00017997,2]
[358099590,1744716638574,-500.0,0.00017997,2]
[358099591,1744716638584,-1293.0,0.00017997,2]
[358099592,1744716638594,-500.0,0.00017997,2]
[358099593,1744716638604,-150.0,0.00017997,2]
[358099594,1744716638614,-500.0,0.00017997,2]
[358099595,1744716638625,-500.0,0.00017997,2]
[358099596,1744716638635,-150.0,0.00017997,2]
[358099598,1744716638644,-150.0,0.00017997,2]
[358099600,1744716638654,-150.0,0.00017997,2]
[358099602,1744716638663,-150.0,0.00017997,2]
[358099604,1744716638673,-500.0,0.00017997,2]
[358099605,1744716638683,-150.0,0.00017997,2]
[358099607,1744716638694,-526.50173563,0.00017998,2]
[358099609,1744716638703,-500.0,0.00017998,2]
[358099611,1744716638713,-500.0,0.00017998,2]
[358099613,1744716638723,-500.0,0.00017998,2]
[358099615,1744716638732,-501.09553567,0.00017998,2]
[358099617,1744716638743,-500.0,0.00017998,2]
[358099619,1744716638752,-500.0,0.00017998,2]
[358099621,1744716638762,-516.55698863,0.00017998,2]
[358099623,1744716638771,-393.42043015,0.00017998,2]
[358099625,1744716638781,-150.0,0.00017998,2]
[358099627,1744716638790,-500.0,0.00017998,2]
[358099629,1744716638799,-150.0,0.00017998,2]
[358099631,1744716638809,-555.11294205,0.00017998,2]
[358099633,1744716638818,-155.3939815,0.00017998,2]
[358099635,1744716638828,-541.59617292,0.00017998,2]
[358099637,1744716638837,-521.8067056,0.00017998,2]
[358099639,1744716638846,-511.94783825,0.00017998,2]
[358099641,1744716638856,-513.16837246,0.00017998,2]
[358099643,1744716638865,-616.9,0.00017998,2]
[358099645,1744716638874,-500.0,0.00017998,2]
[358099647,1744716638883,-500.0,0.00017998,2]
[358099649,1744716638893,-412.29730995,0.00017998,2]
[358099651,1744716638906,-143.11699621,0.00017998,2]
[358099653,1744716638916,-500.0,0.00017998,2]
[358099655,1744716638925,-150.01300379,0.00017998,2]
[358099657,1744716638937,-352.20317477,0.00017998,2]
[358099659,1744716638946,-514.98,0.00017998,2]
[358099661,1744716638955,-500.0,0.00017998,2]
[358099663,1744716638965,-500.0,0.00017998,2]
[358099665,1744716638975,-500.0,0.00017998,2]
[358099667,1744716638985,-500.0,0.00017998,2]
[358099669,1744716638996,-508.9210108,0.00017998,2]
[358099671,1744716639006,-500.0,0.00017998,2]
[358099673,1744716639015,-500.0,0.00017998,2]
[358099675,1744716639024,-505.65946452,0.00017998,2]
[358099677,1744716639033,-500.0,0.00017998,2]
[358099679,1744716639044,-500.0,0.00017998,2]
[358099681,1744716639053,-500.0,0.00017998,2]
[358099682,1744716639062,-500.0,0.00017998,2]
[358099684,1744716639071,-500.0,0.00017998,2]
[358099686,1744716639080,-500.0,0.00017998,2]
[358099688,1744716639089,-500.0,0.00017998,2]
[358099690,1744716639099,-500.0,0.00017998,2]
[358099692,1744716639109,-500.0,0.00017998,2]
[358099694,1744716639119,-500.0,0.00017998,2]
[358099696,1744716639128,-500.0,0.00017998,2]
[358099698,1744716639138,-500.0,0.00017998,2]
[358099701,1744716639151,-500.0,0.00017998,2]
[358099703,1744716639160,-500.0,0.00017998,2]
[358099705,1744716639170,-500.0,0.00017998,2]
[358099707,1744716639180,-500.0,0.00017998,2]
[358099708,1744716639189,-500.0,0.00017998,2]
[358099711,1744716639199,-513.51151106,0.00017998,2]
[358099712,1744716639208,-537.34179468,0.00017998,2]
[358099714,1744716639217,-500.0,0.00017998,2]
[358099716,1744716639227,-500.0,0.00017998,2]
[358099718,1744716639237,-500.0,0.00017998,2]
[358099720,1744716639246,-500.0,0.00017998,2]
[358099722,1744716639255,-500.0,0.00017998,2]
[358099724,1744716639265,-500.0,0.00017998,2]
[358099726,1744716639275,-500.0,0.00017998,2]
[358099728,1744716639288,-555.40129222,0.00017998,2]
[358099730,1744716639297,-500.0,0.00017998,2]
[358099732,1744716639307,-500.0,0.00017998,2]
[358099734,1744716639316,-199.7853455,0.00017998,2]
[358099736,1744716639326,-527.84307565,0.00017998,2]
[358099738,1744716639336,-500.0,0.00017998,2]
[358099740,1744716639346,-500.0,0.00017998,2]
[358099742,1744716639355,-500.0,0.00017998,2]
[358099743,1744716639365,-558.94031554,0.00017998,2]
[358099745,1744716639376,-525.99799707,0.00017998,2]
[358099747,1744716639385,-500.0,0.00017998,2]
[358099749,1744716639395,-509.40255653,0.00017998,2]
[358099751,1744716639404,-500.0,0.00017998,2]
[358099753,1744716639414,-553.05804531,0.00017998,2]
[358099755,1744716639423,-500.0,0.00017998,2]
[358099757,1744716639433,-500.0,0.00017998,2]
[358099759,1744716639442,-598.2174127,0.00017998,2]
[358099761,1744716639453,-567.72014274,0.00017998,2]
[358099763,1744716639463,-500.0,0.00017998,2]
[358099765,1744716639472,-500.0,0.00017998,2]
[358099767,1744716639482,-500.0,0.00017998,2]
[358099769,1744716639493,-500.0,0.00017998,2]
[358099771,1744716639504,-500.0,0.00017998,2]
[358099773,1744716639514,-626.48,0.00017998,2]
[358099775,1744716639525,-509.48608151,0.00017998,2]
[358099777,1744716639535,-436.84455005,0.00017998,2]
[358099779,1744716639544,-500.0,0.00017998,2]
[358099781,1744716639553,-525.58052178,0.00017998,2]
[358099783,1744716639563,-500.0,0.00017998,2]
[358099785,1744716639573,-583.02074856,0.00017998,2]
[358099787,1744716639582,-500.0,0.00017998,2]
[358099789,1744716639591,-526.37565954,0.00017998,2]
[358099791,1744716639600,-500.0,0.00017998,2]
[358099793,1744716639610,-500.0,0.00017998,2]
[358099795,1744716639619,-560.61589651,0.00017998,2]
[358099797,1744716639629,-500.0,0.00017998,2]
[358099799,1744716639638,-524.32604248,0.00017998,2]
[358099801,1744716639647,-635.70673905,0.00017998,2]
[358099802,1744716639656,-200.0,0.00017998,2]
[358099804,1744716639665,-500.0,0.00017998,2]
[358099806,1744716639675,-500.0,0.00017998,2]
[358099808,1744716639684,-500.0,0.00017998,2]
[358099810,1744716639695,-500.0,0.00017998,2]
[358099812,1744716639705,-500.0,0.00017998,2]
[358099814,1744716639714,-500.0,0.00017998,2]
[358099816,1744716639723,-509.08127751,0.00017998,2]
[358099818,1744716639733,-500.0,0.00017998,2]
[358099820,1744716639744,-608.49,0.00017998,2]
[358099822,1744716639753,-533.01371426,0.00017998,2]
[358099824,1744716639762,-500.0,0.00017998,2]
[358099826,1744716639772,-500.0,0.00017998,2]
[358099828,1744716639781,-500.0,0.00017998,2]
[358099830,1744716639791,-500.0,0.00017998,2]
[358099832,1744716639800,-500.0,0.00017998,2]
[358099834,1744716639811,-500.0,0.00017998,2]
[358099836,1744716639820,-3666.19,0.00017998,2]
[358099838,1744716639829,-502.40774967,0.00017998,2]
[358099840,1744716639838,-500.0,0.00017998,2]
[358099842,1744716639848,-811.29,0.00017998,2]
[358099844,1744716639857,-500.0,0.00017998,2]
[358099846,1744716639867,-500.0,0.00017998,2]
[358099848,1744716639876,-500.0,0.00017998,2]
[358099850,1744716639885,-500.0,0.00017998,2]
[358099853,1744716639895,-500.50298585,0.00017998,2]
[358099856,1744716639904,-500.0,0.00017998,2]
[358099857,1744716639914,-500.0,0.00017998,2]
[358099859,1744716639923,-509.30259493,0.00017998,2]
[358099861,1744716639933,-500.0,0.00017998,2]
[358099863,1744716639942,-500.0,0.00017998,2]
[358099865,1744716639951,-521.49180357,0.00017998,2]
[358099867,1744716639960,-500.0,0.00017998,2]
[358099869,1744716639970,-500.0,0.00017998,2]
[358099871,1744716639980,-513.08037922,0.00017998,2]
[358099873,1744716639989,-500.0,0.00017998,2]
[358099875,1744716639998,-500.0,0.00017998,2]
[358099877,1744716640008,-500.0,0.00017998,2]
[358099879,1744716640017,-536.11895544,0.00017998,2]
[358099881,1744716640028,-500.0,0.00017998,2]
[358099883,1744716640037,-500.0,0.00017998,2]
[358099885,1744716640047,-503.93402038,0.00017998,2]
[358099887,1744716640056,-500.0,0.00017998,2]
[358099889,1744716640065,-500.0,0.00017998,2]
[358099892,1744716640075,-500.0,0.00017998,2]
[358099894,1744716640084,-500.0,0.00017998,2]
[358099896,1744716640095,-500.0,0.00017998,2]
[358099898,1744716640105,-500.0,0.00017998,2]
[358099901,1744716640116,-500.0,0.00017998,2]
[358099902,1744716640126,-500.0,0.00017998,2]
[358099904,1744716640136,-500.0,0.00017998,2]
[358099906,1744716640145,-521.22418692,0.00017998,2]
[358099908,1744716640155,-500.0,0.00017998,2]
[358099910,1744716640164,-500.0,0.00017998,2]
[358099912,1744716640173,-500.0,0.00017998,2]
[358099914,1744716640183,-500.0,0.00017998,2]
[358099916,1744716640192,-500.0,0.00017998,2]
[358099918,1744716640201,-500.0,0.00017998,2]
[358099920,1744716640211,-500.0,0.00017998,2]
[358099922,1744716640221,-500.0,0.00017998,2]
[358099924,1744716640231,-500.0,0.00017998,2]
[358099926,1744716640241,-500.0,0.00017998,2]
[358099928,1744716640251,-500.0,0.00017998,2]
[358099930,1744716640262,-500.0,0.00017998,2]
[358099932,1744716640272,-420.46055283,0.00017998,2]
[358099934,1744716640282,-500.0,0.00017998,2]
[358099936,1744716640296,-326.43394485,0.00017998,2]
[358099938,1744716640306,-500.0,0.00017998,2]
[358099940,1744716640315,-500.0,0.00017998,2]
[358099942,1744716640326,-500.0,0.00017998,2]
[358099944,1744716640335,-500.0,0.00017998,2]
[358099946,1744716640345,-500.0,0.00017998,2]
[358099947,1744716640354,-300.0,0.00017998,2]
[358099949,1744716640364,-500.0,0.00017998,2]
[358099951,1744716640374,-500.0,0.00017998,2]
[358099953,1744716640384,-560.95,0.00017998,2]
[358099955,1744716640394,-500.0,0.00017998,2]
[358099957,1744716640403,-500.0,0.00017998,2]
[358099959,1744716640413,-500.0,0.00017998,2]
[358099961,1744716640422,-500.0,0.00017998,2]
[358099963,1744716640432,-500.0,0.00017998,2]
[358099965,1744716640441,-500.0,0.00017998,2]
[358099967,1744716640450,-500.0,0.00017998,2]
[358099969,1744716640460,-500.0,0.00017998,2]
[358099971,1744716640470,-525.20981956,0.00017998,2]
[358099973,1744716640480,-500.0,0.00017998,2]
[358099975,1744716640489,-500.0,0.00017998,2]
[358099977,1744716640499,-500.0,0.00017998,2]
[358099979,1744716640509,-500.0,0.00017998,2]
[358099981,1744716640518,-500.0,0.00017998,2]
[358099983,1744716640527,-500.0,0.00017998,2]
[358099984,1744716640536,-500.0,0.00017998,2]
[358099986,1744716640545,-500.0,0.00017998,2]
[358099988,1744716640554,-500.0,0.00017998,2]
[358099990,1744716640564,-500.0,0.00017998,2]
[358099992,1744716640574,-500.0,0.00017998,2]
[358099994,1744716640584,-500.0,0.00017998,2]
[358099996,1744716640593,-513.44901914,0.00017998,2]
[358099998,1744716640603,-500.0,0.00017998,2]
[358100000,1744716640613,-500.0,0.00017998,2]
[358100002,1744716640622,-500.0,0.00017998,2]
[358100004,1744716640632,-646.3347031,0.00017998,2]
[358100006,1744716640641,-1178.95,0.00017998,2]
[358100008,1744716640651,-500.0,0.00017998,2]
[358100010,1744716640661,-500.0,0.00017998,2]
[358100012,1744716640670,-619.88318437,0.00017998,2]
[358100014,1744716640680,-2000.0,0.00017998,2]
[358100016,1744716640690,-500.0,0.00017998,2]
[358100018,1744716640699,-500.0,0.00017998,2]
[358100019,1744716640708,-500.0,0.00017998,2]
[358100020,1744716640718,-366.38276934,0.00017998,2]
[358100021,1744716640727,-500.0,0.00017998,2]
[358100022,1744716640737,-157.10594848,0.00017998,2]
[358100023,1744716640747,-500.0,0.00017998,2]
[358100024,1744716640756,-500.0,0.00017998,2]
[358100025,1744716640765,-501.38226077,0.00017998,2]
[358100026,1744716640775,-500.0,0.00017998,2]
[358100027,1744716640785,-532.41582482,0.00017998,2]
[358100028,1744716640794,-500.0,0.00017998,2]
[358100029,1744716640804,-500.0,0.00017998,2]
[358100030,1744716640814,-505.6159079,0.00017998,2]
[358100031,1744716640823,-500.0,0.00017998,2]
[358100032,1744716640835,-1133.43,0.00017998,2]
[358100033,1744716640844,-500.0,0.00017998,2]
[358100034,1744716640854,-202.63127873,0.00017998,2]
[358100035,1744716640863,-513.08701844,0.00017998,2]
[358100036,1744716640872,-2000.0,0.00017998,2]
[358100038,1744716640881,-500.0,0.00017998,2]
[358100040,1744716640890,-500.0,0.00017998,2]
[358100041,1744716640899,-500.0,0.00017998,2]
[358100044,1744716640908,-568.89809466,0.00017998,2]
[358100046,1744716640918,-500.0,0.00017998,2]
[358100048,1744716640928,-500.0,0.00017998,2]
[358100050,1744716640937,-500.0,0.00017998,2]
[358100051,1744716640946,-500.0,0.00017998,2]
[358100053,1744716640955,-500.0,0.00017998,2]
[358100055,1744716640964,-500.0,0.00017998,2]
[358100057,1744716640974,-510.6578047,0.00017998,2]
[358100059,1744716640983,-500.0,0.00017998,2]
[358100061,1744716640994,-500.0,0.00017998,2]
[358100063,1744716641003,-500.0,0.00017998,2]
[358100065,1744716641013,-500.0,0.00017998,2]
[358100067,1744716641022,-297.53659475,0.00017998,2]
[358100069,1744716641032,-500.0,0.00017998,2]
[358100071,1744716641041,-500.0,0.00017998,2]
[358100073,1744716641049,-500.0,0.00017998,2]
[358100075,1744716641059,-500.0,0.00017998,2]
[358100077,1744716641071,-500.0,0.00017998,2]
[358100079,1744716641081,-500.0,0.00017998,2]
[358100102,1744716641297,-500.0,0.00017998,2]
[358100104,1744716641308,-500.0,0.00017998,2]
[358100106,1744716641318,-500.0,0.00017998,2]
[358100108,1744716641327,-500.0,0.00017998,2]
[358100110,1744716641339,-510.21546811,0.00017998,2]
[358100112,1744716641349,-176.03560252,0.00017998,2]
[358100114,1744716641359,-500.0,0.00017998,2]
[358100116,1744716641371,-520.54218236,0.00017998,2]
[358100118,1744716641380,-500.0,0.00017998,2]